fUST/lending_fUST_20250805
["ID","MTS","AMOUNT","RATE_DAILY","PERIOD"]
[377346682,1754374820029,-307.1047292,0.00039999,120]
[377346683,1754374820057,-300.0,0.00039999,120]
[377346684,1754374820084,-151.0,0.00039999,120]
[377346685,1754374820109,-500.0,0.00039999,120]
[377346686,1754374820139,-302.60568207,0.00039999,120]
[377346687,1754374820170,-300.0,0.00039999,120]
[377346688,1754374820197,-500.0,0.00039999,120]
[377346689,1754374820227,-151.0,0.00039999,120]
[377346690,1754374820255,-300.0,0.00039999,120]
[377346691,1754374820283,-151.0,0.00039999,120]
[377346692,1754374820311,-300.0,0.00039999,120]
[377346693,1754374820339,-151.0,0.00039999,120]
[377346694,1754374820366,-165.30763314,0.00039999,120]
[377346695,1754374820393,-151.0,0.00039999,120]
[377346696,1754374820420,-151.0,0.00039999,120]
[377346697,1754374820445,-194.35668038,0.00039999,120]
[377346698,1754374820472,-500.0,0.00039999,120]
[377346699,1754374820499,-151.0,0.00039999,120]
[377346700,1754374820525,-151.0,0.00039999,120]
[377346701,1754374820551,-500.0,0.00039999,120]
[377346702,1754374820577,-151.0,0.00039999,120]
[377346703,1754374820604,-500.0,0.00039999,120]
[377346704,1754374820630,-151.0,0.00039999,120]
[377346705,1754374820656,-250.0,0.00039999,120]
[377346706,1754374820684,-153.69133246,0.00039999,120]
[377346707,1754374820711,-500.0,0.00039999,120]
[377346708,1754374820738,-151.0,0.00039999,120]
[377346709,1754374820766,-250.0,0.00039999,120]
[377346710,1754374820794,-500.0,0.00039999,120]
[377346711,1754374820821,-151.0,0.00039999,120]
[377346712,1754374820847,-250.0,0.00039999,120]
[377346713,1754374820874,-500.0,0.00039999,120]
[377346714,1754374821005,-151.0,0.00039999,120]
[377346715,1754374821033,-250.0,0.00039999,120]
[377346716,1754374821058,-500.0,0.00039999,120]
[377346717,1754374821084,-151.0,0.00039999,120]
[377346718,1754374821110,-250.0,0.00039999,120]
[377346719,1754374821138,-500.0,0.00039999,120]
[377346720,1754374821164,-151.0,0.00039999,120]
[377346721,1754374821191,-250.0,0.00039999,120]
[377346722,1754374821217,-151.0,0.00039999,120]
[377346723,1754374821242,-834513.26525932,0.0004,120]
[377346724,1754374821270,-300.0,0.0004,120]
[377346725,1754374821298,-523.66956704,0.0004,120]
[377346726,1754374821326,-2018.0,0.0004,120]
[377346727,1754374821353,-12652.17918183,0.0004,10]
[377346728,1754374821380,-40101.07893361,0.0004,120]
[377346729,1754374821405,-200.0,0.0004,14]
[377346730,1754374821430,-156.374765,0.0004,14]
[377346731,1754374821455,-500.0,0.0004,14]
[377346732,1754374821480,-500.0,0.0004,14]
[377346733,1754374821506,-593.24961039,0.0004,14]
[377346734,1754374821531,-500.0,0.0004,14]
[377346735,1754374821557,-500.0,0.0004,14]
[377346736,1754374821583,-519.49748189,0.0004,14]
[377346737,1754374821609,-368.210422,0.0004,14]
[377346738,1754374821635,-151.0,0.0004,14]
[377346739,1754374821661,-151.0,0.0004,14]
[377346740,1754374821688,-2118.522515,0.0004,14]
[377346741,1754374821716,-2118.522515,0.0004,14]
[377346742,1754374821742,-151.0,0.0004,14]
[377346743,1754374821768,-460.0,0.0004,120]
[377346744,1754374821798,-460.0,0.0004,120]
[377346745,1754374821827,-460.0,0.0004,120]
[377346746,1754374821854,-151.0,0.0004,14]
[377346747,1754374821880,-278.812664,0.0004,14]
[377346748,1754374821908,-178.645881,0.0004,14]
[377346749,1754374821935,-178.645881,0.0004,14]
[377346750,1754374821961,-312.16666667,0.0004,10]
[377346751,1754374821990,-527.3554621,0.0004,10]
[377346752,1754374822018,-460.0,0.0004,120]
[377346753,1754374822048,-460.0,0.0004,120]
[377346754,1754374822075,-784.82,0.0004,120]
[377346755,1754374822101,-735.68,0.0004,120]
[377346756,1754374822130,-460.0,0.0004,120]
[377346757,1754374822158,-216.4206905,0.0004,10]
[377346758,1754374822186,-812.99,0.0004,30]
[377346759,1754374822212,-2200.0,0.0004,14]
[377346760,1754374822240,-460.0,0.0004,120]
[377346761,1754374822266,-700.0,0.00040028,30]
[377346762,1754374822292,-600.0,0.00040054,30]
[377346763,1754374822318,-27985.39,0.000401,14]
[377346764,1754374822350,-151.0,0.000401,14]
[377346765,1754374822377,-284.00833324,0.00040164,28]
[377346766,1754374822404,-7578.19,0.00040265,120]
[377346767,1754374822429,-460.0,0.00040273,120]
[377346768,1754374822457,-460.0,0.00040273,120]
[377346769,1754374822484,-460.0,0.00040273,120]
[377346770,1754374822510,-583.03,0.00040273,120]
[377346771,1754374822537,-460.0,0.00040273,120]
[377346772,1754374822563,-784.82,0.00040273,120]
[377346773,1754374822589,-735.68,0.00040273,120]
[377346774,1754374822615,-460.0,0.00040273,120]
[377346775,1754374822642,-460.0,0.00040273,120]
[377346776,1754374822668,-368.210421,0.000403,14]
[377346777,1754374822695,-151.0,0.000403,14]
[377346778,1754374822722,-2118.522515,0.000403,14]
[377346779,1754374822749,-2118.522515,0.000403,14]
[377346780,1754374822776,-151.0,0.000403,14]
[377346781,1754374822802,-700.0,0.00040348,30]
[377346782,1754374822829,-600.0,0.00040355,30]
[377346783,1754374822854,-700.0,0.00040372,30]
[377346784,1754374822880,-460.0,0.00040547,120]
[377346785,1754374822908,-460.0,0.00040547,120]
[377346786,1754374822936,-460.0,0.00040547,120]
[377346787,1754374822963,-178.645881,0.00040547,14]
[377346788,1754374822990,-178.645881,0.00040547,14]
[377346789,1754374823017,-460.0,0.00040547,120]
[377346790,1754374823044,-784.82,0.00040547,120]
[377346791,1754374823071,-735.68,0.00040547,120]
[377346792,1754374823099,-460.0,0.00040547,120]
[377346793,1754374823127,-600.0,0.00040605,30]
[377346794,1754374823162,-600.0,0.00040786,30]
[377346795,1754374823191,-200.0,0.00040809,120]
[377346796,1754374823218,-602.19259852,0.00040821,120]
[377346797,1754374823248,-460.0,0.00040821,120]
[377346798,1754374823277,-228.52,0.00040821,120]
[377346799,1754374823304,-460.0,0.00040821,120]
[377346800,1754374823331,-735.68,0.00040821,120]
[377346801,1754374823357,-784.82,0.00040821,120]
[377346802,1754374823385,-460.0,0.00040821,120]
[377346803,1754374823411,-500.0,0.00040873,30]
[377346804,1754374823437,-430.7234783,0.00040877,30]
[377346805,1754374823463,-430.7234783,0.00040877,30]
[377346806,1754374823489,-430.7234783,0.00040877,30]
[377346807,1754374823516,-430.7234783,0.00040877,30]
[377346808,1754374823543,-430.7234783,0.00040877,30]
[377346809,1754374823570,-436.4331247,0.00040877,30]
[377346810,1754374823596,-2000.0,0.000409,28]
[377346811,1754374823622,-151.0,0.00041,120]
[377346812,1754374823649,-426.7,0.00041041,120]
[377346813,1754374823676,-169.98,0.00041042,14]
[377346814,1754374823703,-7578.19,0.00041087,120]
[377346815,1754374823733,-460.0,0.00041095,120]
[377346816,1754374823762,-460.0,0.00041095,120]
[377346817,1754374823792,-735.68,0.00041095,120]
[377346818,1754374823819,-784.82,0.00041095,120]
[377346819,1754374823847,-460.0,0.00041095,120]
[377346820,1754374823874,-150.0,0.00041096,10]
[377346821,1754374824004,-231.52,0.00041096,120]
[377346822,1754374824032,-200.0,0.00041161,120]
[377346823,1754374824059,-200.0,0.00041182,120]
[377346824,1754374824096,-158.78,0.00041228,14]
[377346825,1754374824129,-169.98,0.00041261,14]
[377346826,1754374824167,-418.31848,0.000413,120]
[377346827,1754374824205,-460.0,0.00041369,120]
[377346828,1754374824239,-460.0,0.00041369,120]
[377346829,1754374824268,-735.68,0.00041369,120]
[377346830,1754374824297,-784.82,0.00041369,120]
[377346831,1754374824328,-460.0,0.00041369,120]
[377346832,1754374824357,-5752.25,0.000414,14]
[377346833,1754374824385,-600.0,0.00041429,30]
[377346834,1754374824413,-700.0,0.00041449,30]
[377346835,1754374824441,-169.98,0.0004148,14]
[377346836,1754374824471,-460.0,0.00041643,120]
[377346837,1754374824500,-460.0,0.00041643,120]
[377346838,1754374824528,-735.68,0.00041643,120]
[377346839,1754374824556,-784.82,0.00041643,120]
[377346840,1754374824584,-460.0,0.00041643,120]
[377346841,1754374824610,-250.0,0.00041644,10]
[377346842,1754374824637,-600.0,0.0004165,30]
[377346843,1754374824664,-434.57,0.000417,14]
[377346844,1754374824693,-27985.39,0.000417,14]
[377346845,1754374824722,-151.0,0.000417,30]
[377346846,1754374824751,-500.0,0.00041709,30]
[377346847,1754374824778,-1029.0,0.000419,30]
[377346848,1754374824806,-7578.19,0.00041909,120]
[377346849,1754374824836,-460.0,0.00041917,120]
[377346850,1754374824865,-460.0,0.00041917,120]
[377346851,1754374824892,-735.68,0.00041917,120]
[377346852,1754374824920,-784.82,0.00041917,120]
[377346853,1754374824949,-549.95,0.00041917,120]
[377346854,1754374824978,-300.0,0.00042,120]
[377346855,1754374825007,-500.0,0.00042,30]
[377346856,1754374825035,-500.0,0.00042,30]
[377346857,1754374825066,-177.940623,0.00042,120]
[377346858,1754374825093,-151.0,0.00042,120]
[377346859,1754374825126,-200.0,0.00042004,30]
[377346860,1754374825170,-200.0,0.00042004,30]
[377346861,1754374825202,-200.0,0.00042004,30]
[377346862,1754374825234,-240.0,0.00042004,30]
[377346863,1754374825263,-700.0,0.00042112,30]
[377346864,1754374825289,-700.0,0.00042153,30]
[377346865,1754374825317,-700.0,0.0004218,30]
[377346866,1754374825350,-460.0,0.00042191,120]
[377346867,1754374825379,-460.0,0.00042191,120]
[377346868,1754374825408,-735.68,0.00042191,120]
[377346869,1754374825435,-784.82,0.00042191,120]
[377346870,1754374825461,-350.0,0.00042192,10]
[377346871,1754374825487,-600.0,0.00042211,30]
[377346872,1754374825517,-151.0,0.000423,120]
[377346873,1754374825544,-200.0,0.00042322,120]
[377346874,1754374825573,-460.0,0.00042465,120]
[377346875,1754374825600,-211.05512807,0.00042465,120]
[377346876,1754374825626,-735.68,0.00042465,120]
[377346877,1754374825653,-784.82,0.00042465,120]
[377346878,1754374825680,-1500.0,0.00042466,60]
[377346879,1754374825708,-200.0,0.00042478,120]
[377346880,1754374825736,-600.0,0.00042494,30]
[377346881,1754374825765,-7578.19,0.00042731,120]
[377346882,1754374825794,-200.0,0.00042732,120]
[377346883,1754374825824,-460.0,0.00042739,120]
[377346884,1754374825852,-735.68,0.00042739,120]
[377346885,1754374825881,-784.82,0.00042739,120]
[377346886,1754374825908,-192.19326317,0.0004274,10]
[377346887,1754374825936,-284.00833324,0.00042796,28]
[377346888,1754374825964,-700.0,0.00042804,30]
[377346889,1754374825991,-200.0,0.0004285,120]
[377346890,1754374826017,-200.0,0.00042853,120]
[377346891,1754374826043,-1441.52615076,0.000429,120]
[377346892,1754374826069,-600.0,0.00042951,30]
[377346893,1754374826095,-418.31851,0.00043,120]
[377346894,1754374826120,-4705.0,0.00043,120]
[377346895,1754374826149,-150.0,0.00043,120]
[377346896,1754374826174,-2972.02975311,0.00043,120]
[377346897,1754374826201,-25000.0,0.00043,120]
[377346898,1754374826228,-263.7049,0.00043,120]
[377346899,1754374826254,-5752.25,0.00043,14]
[377346900,1754374826280,-178.645881,0.00043,120]
[377346901,1754374826307,-178.645881,0.00043,120]
[377346902,1754374826335,-460.0,0.00043013,120]
[377346903,1754374826363,-735.68,0.00043013,120]
[377346904,1754374826389,-784.82,0.00043013,120]
[377346905,1754374826414,-426.68932472,0.0004302,30]
[377346906,1754374826440,-500.0,0.0004312,30]
[377346907,1754374826467,-700.0,0.0004314,30]
[377346908,1754374826495,-200.0,0.00043166,120]
[377346909,1754374826521,-9041.46636972,0.00043172,86]
[377346910,1754374826548,-700.0,0.00043209,30]
[377346911,1754374826574,-600.0,0.00043236,30]
[377346912,1754374826600,-600.0,0.00043249,30]
[377346913,1754374826628,-460.0,0.00043287,120]
[377346914,1754374826655,-735.68,0.00043287,120]
[377346915,1754374826683,-784.82,0.00043287,120]
[377346916,1754374826711,-200.0,0.00043332,120]
[377346917,1754374826738,-700.0,0.00043373,30]
[377346918,1754374826764,-27985.39,0.000434,14]
[377346919,1754374826791,-151.0,0.000434,30]
[377346920,1754374826819,-600.0,0.0004344,30]
[377346921,1754374826847,-434.57,0.000435,14]
[377346922,1754374826875,-7578.19,0.00043553,120]
[377346923,1754374826904,-460.0,0.00043561,120]
[377346924,1754374827041,-735.68,0.00043561,120]
[377346925,1754374827069,-784.82,0.00043561,120]
[377346926,1754374827097,-1500.0,0.00043562,60]
[377346927,1754374827123,-700.0,0.00043574,30]
[377346928,1754374827155,-151.0,0.000436,120]
[377346929,1754374827182,-700.0,0.00043604,30]
[377346930,1754374827210,-200.0,0.00043642,120]
[377346931,1754374827238,-200.0,0.00043679,120]
[377346932,1754374827265,-700.0,0.00043755,30]
[377346933,1754374827290,-700.0,0.00043774,30]
[377346934,1754374827317,-500.0,0.00043816,30]
[377346935,1754374827346,-460.0,0.00043835,120]
[377346936,1754374827372,-735.68,0.00043835,120]
[377346937,1754374827400,-784.82,0.00043835,120]
[377346938,1754374827426,-600.0,0.00043853,30]
[377346939,1754374827453,-700.0,0.00043857,30]
[377346940,1754374827480,-700.0,0.00043907,30]
[377346941,1754374827508,-300.0,0.00044,120]
[377346942,1754374827536,-1000.0,0.00044,120]
[377346943,1754374827563,-1000.0,0.00044,120]
[377346944,1754374827589,-150.0,0.00044,120]
[377346945,1754374827617,-200.0,0.00044007,120]
[377346946,1754374827644,-837.07521335,0.00044042,94]
[377346947,1754374827671,-500.0,0.000441,30]
[377346948,1754374827700,-460.0,0.00044109,120]
[377346949,1754374827727,-735.68,0.00044109,120]
[377346950,1754374827755,-784.82,0.00044109,120]
[377346951,1754374827782,-22520.07190537,0.0004418,120]
[377346952,1754374827809,-600.0,0.00044197,30]
[377346953,1754374827837,-200.0,0.00044321,120]
[377346954,1754374827865,-200.0,0.00044338,120]
[377346955,1754374827892,-7578.19,0.00044375,120]
[377346956,1754374827919,-700.0,0.00044377,30]
[377346957,1754374827947,-357.85,0.00044383,120]
[377346958,1754374827973,-735.68,0.00044383,120]
[377346959,1754374827999,-784.82,0.00044383,120]
[377346960,1754374828025,-600.0,0.00044471,30]
[377346961,1754374828051,-700.0,0.00044494,30]
[377346962,1754374828078,-5752.25,0.000445,14]
[377346963,1754374828104,-4000.00000099,0.0004455,120]
[377346964,1754374828131,-735.77204432,0.00044657,120]
[377346965,1754374828161,-785.03080023,0.00044657,120]
[377346966,1754374828188,-1500.0,0.00044658,60]
[377346967,1754374828216,-200.0,0.00044898,120]
[377346968,1754374828243,-151.0,0.000449,120]
[377346969,1754374828270,-700.0,0.00044931,30]
[377346970,1754374828297,-200.0,0.0004494,120]
[377346971,1754374828324,-403.94234591,0.00044975,96]
[377346972,1754374828349,-546.21443,0.00045,120]
[377346973,1754374828376,-1000.0,0.00045,120]
[377346974,1754374828402,-200.0,0.00045,120]
[377346975,1754374828428,-20000.0,0.00045,120]
[377346976,1754374828454,-5384.72266112,0.00045,120]
[377346977,1754374828480,-435.0,0.00045,120]
[377346978,1754374828508,-178.645881,0.00045,120]
[377346979,1754374828536,-178.645881,0.00045,120]
[377346980,1754374828563,-500.0,0.00045047,30]
[377346981,1754374828589,-700.0,0.0004507,30]
[377346982,1754374828616,-818.96134097,0.00045141,30]
[377346983,1754374828642,-500.0,0.0004519,30]
[377346984,1754374828670,-7578.19,0.00045196,120]
[377346985,1754374828697,-1253.6424,0.000452,120]
[377346986,1754374828725,-434.57,0.000453,14]
[377346987,1754374828753,-27985.39,0.000453,14]
[377346988,1754374828781,-200.0,0.00045315,120]
[377346989,1754374828810,-229.53,0.00045414,30]
[377346990,1754374828837,-284.00833324,0.00045429,28]
[377346991,1754374828864,-700.0,0.00045453,30]
[377346992,1754374828890,-700.0,0.00045495,30]
[377346993,1754374828917,-600.0,0.0004562,30]
[377346994,1754374828944,-426.7,0.00045626,120]
[377346995,1754374828971,-200.0,0.00045667,120]
[377346996,1754374828997,-1500.0,0.00045754,60]
[377346997,1754374829023,-600.0,0.00045792,30]
[377346998,1754374829050,-200.0,0.00045802,120]
[377346999,1754374829076,-700.0,0.00045873,30]
[377347000,1754374829101,-700.0,0.00045956,30]
[377347001,1754374829135,-200.0,0.00045961,60]
[377347002,1754374829168,-200.0,0.00045961,60]
[377347003,1754374829200,-200.0,0.00045961,60]
[377347004,1754374829237,-200.0,0.00045961,60]
[377347005,1754374829272,-375.0,0.00045961,60]
[377347006,1754374829299,-300.0,0.00046,120]
[377347007,1754374829325,-1000.0,0.00046,120]
[377347008,1754374829351,-5000.0,0.00046,120]
[377347009,1754374829378,-7578.19,0.00046018,120]
[377347010,1754374829404,-700.0,0.00046195,30]
[377347011,1754374829431,-151.0,0.000462,120]
[377347012,1754374829457,-200.0,0.00046209,120]
[377347013,1754374829485,-500.0,0.00046305,30]
[377347014,1754374829511,-1444.0,0.00046466,120]
[377347015,1754374829538,-467.41,0.00046575,30]
[377347016,1754374829564,-467.41,0.00046575,30]
[377347017,1754374829589,-467.41,0.00046575,30]
[377347018,1754374829615,-467.41,0.00046575,30]
[377347019,1754374829640,-467.41,0.00046575,30]
[377347020,1754374829666,-467.41,0.00046575,30]
[377347021,1754374829692,-467.41,0.00046575,30]
[377347022,1754374829719,-467.41,0.00046575,30]
[377347023,1754374829745,-467.41,0.00046575,30]
[377347024,1754374829878,-467.41,0.00046575,30]
[377347025,1754374829906,-467.41,0.00046575,30]
[377347026,1754374829933,-467.41,0.00046575,30]
[377347027,1754374829960,-467.41,0.00046575,30]
[377347028,1754374829986,-467.41,0.00046575,30]
[377347029,1754374830014,-467.41,0.00046575,30]
[377347030,1754374830040,-467.41,0.00046575,30]
[377347031,1754374830066,-467.41,0.00046575,30]
[377347032,1754374830093,-467.41,0.00046575,30]
[377347033,1754374830121,-467.41,0.00046575,30]
[377347034,1754374830154,-467.41,0.00046575,30]
[377347035,1754374830180,-467.41,0.00046575,30]
[377347036,1754374830207,-467.41,0.00046575,30]
[377347037,1754374830236,-467.41,0.00046575,30]
[377347038,1754374830262,-467.49063835,0.00046575,30]
[377347039,1754374830288,-860.2785724,0.0004663,30]
[377347040,1754374830314,-700.0,0.00046668,30]
[377347041,1754374830341,-7578.19,0.0004684,120]
[377347042,1754374830368,-1500.0,0.0004685,60]
[377347043,1754374830393,-700.0,0.00046862,30]
[377347044,1754374830420,-200.0,0.00046984,120]
[377347045,1754374830445,-4369.74909379,0.00047,120]
[377347046,1754374830471,-1000.0,0.00047,120]
[377347047,1754374830498,-5752.25,0.00047,14]
[377347048,1754374830525,-434.57,0.00047,14]
[377347049,1754374830550,-500.0,0.00047078,30]
[377347050,1754374830576,-700.0,0.00047195,30]
[377347051,1754374830602,-27985.39,0.000472,14]
[377347052,1754374830629,-200.0,0.00047236,120]
[377347053,1754374830656,-700.0,0.0004724,30]
[377347054,1754374830684,-200.0,0.00047266,120]
[377347055,1754374830712,-200.0,0.00047289,120]
[377347056,1754374830738,-600.0,0.00047291,30]
[377347057,1754374830766,-700.0,0.000473,30]
[377347058,1754374830794,-200.0,0.00047469,120]
[377347059,1754374830821,-200.0,0.00047553,120]
[377347060,1754374830848,-200.0,0.00047573,120]
[377347061,1754374830874,-360.7855215,0.00047589,30]
[377347062,1754374830900,-587.9427917,0.00047589,30]
[377347063,1754374830927,-151.0,0.000476,120]
[377347064,1754374830953,-700.0,0.00047649,30]
[377347065,1754374830980,-7578.19,0.00047662,120]
[377347066,1754374831007,-700.0,0.00047729,30]
[377347067,1754374831033,-500.0,0.00047817,30]
[377347068,1754374831059,-700.0,0.00047926,30]
[377347069,1754374831084,-1500.0,0.00047946,60]
[377347070,1754374831111,-200.0,0.00047958,120]
[377347071,1754374831138,-700.0,0.00047967,30]
[377347072,1754374831165,-1000.0,0.00047999,120]
[377347073,1754374831193,-300.0,0.00048,120]
[377347074,1754374831220,-1000.0,0.00048,120]
[377347075,1754374831247,-1000.0,0.00048,120]
[377347076,1754374831275,-505.94478223,0.00048,60]
[377347077,1754374831301,-563556.77383214,0.00048,90]
[377347078,1754374848033,-500.0,0.00039999,120]
[377347079,1754374848063,-250.0,0.00039999,120]
[377347080,1754374848090,-172.19305179,0.00039999,120]
[377347081,1754374848118,-500.0,0.00039999,120]
[377347082,1754374848146,-250.0,0.00039999,120]
[377347083,1754374848174,-355.0685403,0.00039999,120]
[377347084,1754374848203,-250.0,0.00039999,120]
[377347085,1754374848337,-250.0,0.00039999,120]
[377347086,1754374848366,-250.0,0.00039999,120]
[377347087,1754374848393,-250.0,0.00039999,120]
[377347088,1754374848421,-250.0,0.00039999,120]
[377347089,1754374848449,-250.0,0.00039999,120]
[377347090,1754374848476,-250.0,0.00039999,120]
[377347091,1754374848502,-250.0,0.00039999,120]
[377347092,1754374848529,-250.0,0.00039999,120]
[377347093,1754374848557,-250.0,0.00039999,120]
[377347094,1754374848584,-250.0,0.00039999,120]
[377347095,1754374848611,-250.0,0.00039999,120]
[377347096,1754374848638,-151.0,0.00039999,120]
[377347097,1754374848670,-151.0,0.00039999,120]
[377347098,1754374848698,-151.0,0.00039999,120]
[377347099,1754374848726,-201.85161223,0.00039999,120]
[377347100,1754374848754,-151.0,0.00039999,120]
[377347101,1754374848782,-151.0,0.00039999,120]
[377347102,1754374848809,-151.0,0.00039999,120]
[377347103,1754374848837,-151.0,0.00039999,120]
[377347104,1754374848865,-151.0,0.00039999,120]
[377347105,1754374848893,-151.0,0.00039999,120]
[377347106,1754374848920,-151.0,0.00039999,120]
[377347107,1754374848947,-151.0,0.00039999,120]
[377347108,1754374848975,-252.08147018,0.00039999,120]
[377347109,1754374849005,-460.0,0.00040547,120]
[377347110,1754374849033,-460.0,0.00040821,120]
[377347111,1754374849061,-460.0,0.00041095,120]
[377347112,1754374849088,-460.0,0.00041369,120]
[377347113,1754374849116,-460.0,0.00041643,120]
[377347114,1754374849144,-460.0,0.00041917,120]
[377347115,1754374849172,-500.0,0.00042,30]
[377347116,1754374849201,-460.0,0.00042191,120]
[377347117,1754374849230,-460.0,0.00042465,120]
[377347118,1754374849258,-526.91,0.00042739,120]
[377347119,1754374849285,-500.0,0.000441,30]
[377347120,1754374849313,-436443.22616786,0.00048,90]
[377347121,1754374849338,-86334.28542922,0.00048,120]
[377347122,1754374849365,-3000.0,0.00048,120]
[377347123,1754374849392,-178.645881,0.00048,120]
[377347124,1754374849421,-178.64588284,0.00048,120]
[377347125,1754374849447,-200.0,0.00048024,120]
[377347126,1754374849472,-3249.08808318,0.00048033,120]
[377347127,1754374849498,-700.0,0.00048052,30]
[377347128,1754374849524,-284.00833324,0.00048061,28]
[377347129,1754374849552,-200.0,0.00048156,120]
[377347130,1754374849577,-700.0,0.00048266,30]
[377347131,1754374849604,-7578.19,0.00048484,120]
[377347132,1754374849630,-700.0,0.00048535,30]
[377347133,1754374849656,-600.0,0.00048546,30]
[377347134,1754374849685,-500.0,0.0004862,30]
[377347135,1754374849712,-501.45785354,0.00048641,30]
[377347136,1754374849739,-700.0,0.00048655,30]
[377347137,1754374849765,-19142.61,0.000487,15]
[377347138,1754374849793,-162.15,0.000487,15]
[377347139,1754374849826,-700.0,0.00048702,30]
[377347140,1754374849854,-265.71801667,0.00048783,120]
[377347141,1754374849882,-265.71801667,0.00048785,120]
[377347142,1754374849911,-1338.83498605,0.00048796,120]
[377347143,1754374849939,-2671.72391802,0.000488,120]
[377347144,1754374849966,-230.22295675,0.000488,120]
[377347145,1754374849993,-1964.49268793,0.000488,120]
[377347146,1754374850020,-1338.83498605,0.00048842,120]
[377347147,1754374850047,-265.71801667,0.00048843,120]
[377347148,1754374850074,-265.71801667,0.00048853,120]
[377347149,1754374850100,-1338.83498605,0.00048856,120]
[377347150,1754374850126,-1338.83498605,0.00048858,120]
[377347151,1754374850154,-700.0,0.00048874,30]
[377347152,1754374850181,-1500.0,0.000489,120]
[377347153,1754374850208,-151.0,0.000489,120]
[377347154,1754374850236,-700.0,0.00048944,30]
[377347155,1754374850261,-700.0,0.00048965,30]
[377347156,1754374850287,-268486.95774224,0.00048989,120]
[377347157,1754374850314,-66440.73498647,0.00048989,120]
[377347158,1754374850339,-1000.0,0.00049,120]
[377347159,1754374850366,-1000.0,0.00049,120]
[377347160,1754374850392,-308.94999158,0.00049,15]
[377347161,1754374850417,-190.0,0.0004901,30]
[377347162,1754374850444,-1500.0,0.00049042,60]
[377347163,1754374850469,-700.0,0.00049073,30]
[377347164,1754374850496,-700.0,0.00049124,30]
[377347165,1754374850523,-700.0,0.00049195,30]
[377347166,1754374850550,-7578.19,0.00049306,120]
[377347167,1754374850577,-500.0,0.00049315,120]
[377347168,1754374850603,-151.90970189,0.00049315,120]
[377347169,1754374850629,-151.0,0.00049315,120]
[377347170,1754374850656,-500.0,0.00049315,120]
[377347171,1754374850683,-151.0,0.00049315,120]
[377347172,1754374850710,-151.0,0.00049315,120]
[377347173,1754374850738,-500.0,0.00049315,120]
[377347174,1754374850764,-151.0,0.00049315,120]
[377347175,1754374850792,-151.0,0.00049315,120]
[377347176,1754374850818,-151.0,0.00049315,120]
[377347177,1754374850939,-151.0,0.00049315,120]
[377347178,1754374850968,-267.06449588,0.00049315,120]
[377347179,1754374850995,-500.0,0.00049315,120]
[377347180,1754374851023,-700.0,0.0004933,30]
[377347181,1754374851050,-700.0,0.0004937,30]